Cogmind - Beta 13 @@@ ROGUE MODE // 2024.04.04 @ 15:50:43 Player: Westakvia Result: Destroyed by G-34 Mercenary with Small Laser Performance ------------- Evolutions (1) 500 Regions Visited (2) 400 Robots Destroyed (18) 90 Value Destroyed (371) 371 Prototype IDs (0) 0 Alien Tech Used (0) 0 Bonus (0) 0 TOTAL SCORE: 1361 Bonus ------- None Cogmind --------- Core Integrity 0/400 Matter 285/300 Energy 100/100 System Corruption 0% Temperature Cool (6) Movement Core (400) Ox7 Location -9/Materials Parts ------- > --- POWER (1) -------- (None) > --- PROPULSION (2) --- (None) > --- UTILITY (4) ------ Large Storage Unit > --- WEAPON (2) ------- Mining Claw > --- INVENTORY (15) --- Improved Ion Engine Improved Aluminum Leg Wheel Compact Wheel Medium Storage Unit Transport Network Coupler Medium Laser Assault Rifle Datajack Peak State ------------ > --- POWER ------------ Light Ion Engine > --- PROPULSION ------- Light Treads Light Treads > --- UTILITY ---------- Large Storage Unit Visual Processing Unit Targeting Computer > --- WEAPON ----------- Particle Gun Mining Claw > --- INVENTORY -------- Light Ion Engine Wheel Compact Wheel Medium Storage Unit Transport Network Coupler Medium Laser Assault Rifle Datajack [Rating: 10] Favorites ----------- Power Light Ion Engine Engine Light Ion Engine Propulsion Light Treads Treads Light Treads Utility Small Storage Unit Storage Small Storage Unit Processor Targeting Computer Protection Backup Plating I Weapon Mining Claw Energy Gun Particle Gun Ballistic Gun Assault Rifle Ballistic Cannon Light Cannon Slashing Weapon Mining Claw Special Melee Weapon Datajack Build | -11 -10 -9 ------- Run | Yrd Mat Mat Slots Evolved 2 | . . 2 Power . | . . . Propulsion . | . . . Utility 2 | . . 2 Weapon . | . . . Parts Attached 19 | 6 10 3 Power 3 | 1 1 1 Engine 3 | 1 1 1 Core . | . . . Reactor . | . . . Propulsion 2 | 2 . . Treads 2 | 2 . . Leg . | . . . Wheel . | . . . Hover . | . . . Flight . | . . . Utility 5 | 1 3 1 Device . | . . . Storage 3 | 1 2 . Processor 2 | . 1 1 Hackware . | . . . Protection . | . . . Artifact . | . . . Weapon 9 | 2 6 1 Energy Gun 1 | . 1 . Energy Cannon . | . . . Ballistic Gun 2 | 2 . . Ballistic Cannon 2 | . 2 . Launcher . | . . . Special Weapon . | . . . Impact Weapon . | . . . Slashing Weapon 3 | . 2 1 Piercing Weapon . | . . . Special Melee Weapon 1 | . 1 . Unidentified Prototypes . | . . . Parts Lost 6 | . 2 4 Power 2 | . 1 1 Propulsion 2 | . . 2 Utility 2 | . 1 1 Weapon . | . . . Highest Loss Streak 4 | . 2 4 To Critical Strikes . | . . . Average Slot Usage (%) 91 | . 94 77 Engine 13 | . 13 9 Treads 26 | . 28 18 Storage 13 | . 14 11 Processor 6 | . 4 19 Protection 3 | . 4 . Energy Gun 8 | . 7 8 Ballistic Gun 6 | . 7 . Ballistic Cannon 4 | . 4 . Slashing Weapon 8 | . 7 10 Naked Turns . | . . . Heaviest Build 28 | 12 28 28 Greatest Support 40 | 40 40 40 Greatest Overweight (x) 7 | 2 . 7 Average Overweight (x) . | . . . Largest Inventory Capacity 15 | 8 15 15 Average Capacity 10 | 7 10 15 Most Carried 10 | 4 10 9 Average Carried 7 | 1 7 8 Final Capacity 15 | 8 15 15 Final Carried 9 | 4 9 9 Class Distribution -------------------- 100% | Mutant Dominant Class ---------------- Mutant | -10/Materials Mutant | -9/Materials Resources | -11 -10 -9 ----------- Run | Yrd Mat Mat Matter Collected 555 | 103 435 17 Remotely . | . . . Salvage Created 472 | . 377 95 Parts 33 | . 31 2 Haulers Intercepted 1 | . 1 . Recyclers Shooed . | . . . Parts Field Recycled . | . . . Retrieved Matter . | . . . Parts Self-Destructed . | . . . Prevented . | . . . Kills | -11 -10 -9 ------- Run | Yrd Mat Mat Combat Hostiles Destroyed 13 | . 11 2 Melee 2 | . . 2 Guns 6 | . 6 . Cannons 5 | . 5 . Classes Destroyed 7 | . 5 2 Worker 2 | . 2 . Hauler 1 | . 1 . Watcher 2 | . 2 . Swarmer 6 | . 6 . Grunt 5 | . 5 . Duelist 1 | . . 1 Sentry 1 | . . 1 Best Kill Streak 3 | . 3 1 Combat Bots Only 3 | . 3 1 Max Kills in Single Turn 2 | . 2 1 Gunslinging . | . . . Exploded . | . . . Melee 1 | . . 1 Uniques/NPCs Destroyed . | . . . Combat | -11 -10 -9 -------- Run | Yrd Mat Mat Hostile Shots Fired 118 | . 71 47 Missed 39 | . 25 14 Damage Taken 1200 | . 507 693 Core 468 | . 64 404 Absorbed by Shields . | . . . Core Remaining (%) 87 | 100 74 . Volleys Fired 39 | . 35 4 Largest 2 | . 2 1 Hottest 65 | . 65 65 Shots Fired 65 | . 61 4 Gun 41 | . 37 4 Cannon 24 | . 24 . Launcher . | . . . Special . | . . . Kinetic 57 | . 57 . Thermal 8 | . 4 4 Explosive . | . . . Electromagnetic . | . . . Robot Hit Streak 10 | . 10 5 Robot Miss Streak 3 | . 3 1 Penetration Max . | . . . Secondary Targets . | . . . Shots Hit Robots 59 | . 46 13 Core Hits 21 | . 17 4 Critical Kills . | . . . Critical Parts Destroyed . | . . . Critical Strikes 1 | . 1 . Blast 1 | . 1 . Melee Attacks 22 | . 9 13 Impact . | . . . Slashing 16 | . 3 13 Piercing . | . . . Sneak Attacks 2 | . 2 . Combat Hostiles . | . . . Follow-up Attacks . | . . . Damage Inflicted 934 | . 742 192 Guns 328 | . 286 42 Cannons 339 | . 339 . Explosions . | . . . Melee 267 | . 117 150 Ramming . | . . . Kinetic 595 | . 595 . Thermal 72 | . 30 42 Explosive . | . . . Electromagnetic . | . . . Impact . | . . . Slashing 267 | . 117 150 Piercing . | . . . Highest Corruption 1 | . 1 . Average Corruption 1 | . 1 . Corruption Purged . | . . . Corruption Blocked . | . . . Overload Shots . | . . . Overflow Damage 27 | . 27 . Projectiles 12 | . 12 . Explosions . | . . . Melee 15 | . 15 . Knockbacks 3 | . 3 . Impact . | . . . Kinetic 2 | . 2 . Secondary 1 | . 1 . Self-Inflicted Damage . | . . . Shots . | . . . Rammed . | . . . Targets Rammed . | . . . Kicked . | . . . Crushed . | . . . Highest Temperature 45 | . 24 45 Average Temperature 13 | . 11 19 Received Heat Transfer 192 | . 93 99 Siege Activations . | . . . Robots Corrupted . | . . . Combat Hostiles . | . . . Parts Fried . | . . . Impact Corruptions 1 | . 1 . Robots Melted . | . . . Combat Hostiles . | . . . Parts Melted 1 | . 1 . Heat Transferred 185 | . 74 111 Parts Sabotaged . | . . . Parts Stolen . | . . . Parts Stripped . | . . . Power Chain Reactions . | . . . Alert | -11 -10 -9 ------- Run | Yrd Mat Mat Peak Influence 225 | . 225 99 Initial 29 | . . 29 Average 56 | . 59 71 Maximum Alert Level 1 | . 1 . Low Security (%) 97 | 100 96 100 Level 1 2 | . 3 . Level 2 . | . . . Level 3 . | . . . Level 4 . | . . . Level 5 . | . . . High Security . | . . . Max Security . | . . . Squads Dispatched 3 | . 2 1 Investigation . | . . . Extermination . | . . . Reinforcement 3 | . 2 1 Assault . | . . . Garrison . | . . . Intercept . | . . . Searches Triggered . | . . . Construction Impeded . | . . . Haulers Reinforced . | . . . Active Scanning Responses . | . . . Cargo Convoy Interrupts . | . . . Stealth | -11 -10 -9 --------- Run | Yrd Mat Mat Distress Signals 1 | . . 1 Communications Jammed . | . . . Distress Signals . | . . . Times Spotted 26 | . 19 7 Peak Tracking Total 6 | . 4 6 Tactical Retreats 1 | . 1 . Traps | -11 -10 -9 ------- Run | Yrd Mat Mat Traps Triggered 4 | . 4 . Indirectly . | . . . Trap Hack Attempts . | . . . Triggered . | . . . Disarmed . | . . . Reprogrammed . | . . . Reused . | . . . Traps Extracted . | . . . Installed . | . . . Triggered . | . . . Machines | -11 -10 -9 ---------- Run | Yrd Mat Mat Machines Disabled . | . . . Max in Single Turn . | . . . Machines Repaired . | . . . Machines Dismantled . | . . . Machines Sabotaged . | . . . Overloaded Fab Kills . | . . . Hacking | -11 -10 -9 --------- Run | Yrd Mat Mat Machines Accessed 6 | . 5 1 Terminals 4 | . 3 1 Fabricators . | . . . Repair Stations 1 | . 1 . Recycling Units 1 | . 1 . Scanalyzers . | . . . Garrison Access . | . . . Total Hacks 16 | . 14 2 Successful 7 | . 6 1 Failed 9 | . 8 1 Catastrophic 1 | . 1 . Database Lockouts . | . . . Manual . | . . . Terminals 12 | . 10 2 Fabricators . | . . . Repair Stations 1 | . 1 . Recycling Units 3 | . 3 . Scanalyzers . | . . . Garrison Access . | . . . Terminal Hacks 5 | . 4 1 Record 4 | . 3 1 Dispatch Records 1 | . 1 . Fabricator Hacks . | . . . Repair Station Hacks 1 | . 1 . Refit 1 | . 1 . Recycling Unit Hacks 1 | . 1 . Retrieve Matter 1 | . 1 . Scanalyzer . | . . . Garrison Access Hacks . | . . . Unauthorized Hacks . | . . . Terminals . | . . . Fabricators . | . . . Repair Stations . | . . . Recycling Units . | . . . Scanalyzers . | . . . Garrison Access . | . . . Data Cores Recovered . | . . . Used . | . . . Hacking Detections 4 | . 3 1 Full Trace Events 2 | . 2 . Feedback Events . | . . . Feedback Blocked . | . . . Robot Schematics Acquired . | . . . Robots Built . | . . . Authchips . | . . . Time . | . . . Total Robot Build Rating . | . . . Part Schematics Acquired . | . . . Parts Built . | . . . Authchips . | . . . Time . | . . . Total Part Build Rating . | . . . Parts Repaired . | . . . Time . | . . . Parts Recycled . | . . . Recycled Matter . | . . . Retrieved Matter . | . . . Retrieved Components . | . . . Parts Scanalyzed . | . . . Part Schematics Acquired . | . . . Parts Damaged . | . . . Bothacking | -11 -10 -9 ------------ Run | Yrd Mat Mat Used RIF Installer . | . . . Robots Hacked 2 | . 2 . Non-combat . | . . . Combat 2 | . 2 . Robot Hacks Applied 4 | . 4 . parse_system 4 | . 4 . Relay Couplers Released . | . . . Fabnet Peak Effective % . | . . . Robots Rewired . | . . . Allies Hacked . | . . . Hacks Repelled . | . . . Allies | -11 -10 -9 -------- Run | Yrd Mat Mat Total Allies . | . . . Largest Group . | . . . Highest-Rated Group . | . . . Highest-Rated Ally . | . . . Total Orders . | . . . Ally Attacks . | . . . Total Damage . | . . . Kills . | . . . Allies Corrupted . | . . . Allies Melted . | . . . Intel | -11 -10 -9 ------- Run | Yrd Mat Mat Robot Analysis Total . | . . . Derelict Logs Recovered . | . . . Drone Launches . | . . . Drone Recoveries . | . . . Exploration | -11 -10 -9 ------------- Run | Yrd Mat Mat Turns Passed 1422 | 88 1148 186 Spaces Moved 713 | 50 593 70 Core 12 | 10 . 2 Treads 701 | 40 593 68 Legs . | . . . Wheels . | . . . Hover . | . . . Flight . | . . . Fastest Speed 50 | 50 160 160 Average Speed 159 | 146 160 166 Slowest Speed 400 | 160 160 400 Overloaded Moves . | . . . Propulsion Burnouts . | . . . Robots Hopped . | . . . Cave-ins Triggered . | . . . Exploration Rate (%) 33 | 5 84 10 Regions Visited 2 Branch Regions . Pre-discovered Areas . | . . . Known Exits Taken . | . . . Unknown Exits Taken 2 | 1 1 . Scrap Searched . | . . . Spaces Dug . | . . . Terrain Destroyed . | . . . Melee . | . . . Projectile . | . . . AOE . | . . . Terrain Rammed . | . . . Walls Destroyed . | . . . Machines Disabled . | . . . Actions | -11 -10 -9 --------- Run | Yrd Mat Mat Total 896 | 65 721 110 Wait 79 | . 60 19 Move 711 | 49 592 70 Hop . | . . . Pick Up 22 | 10 11 1 Fast Attach . | . . . Attach 13 | 6 4 3 Detach . | . . . Swap 6 | . 6 . Drop 4 | . 4 . Fire 39 | . 35 4 Melee 22 | . 9 13 Ram . | . . . Kick . | . . . Crush . | . . . Escape Stasis . | . . . Rewire . | . . . Trap . | . . . Miscellaneous . | . . . Route ------- -11/Scrapyard -10/Materials (discovered 4 exits: *Mat x3 / [*Min]) -9/Materials (discovered 1 exit: [*Sto]) History --------- Turn | Location | Event 6 | -11/Scrapyard | Discovered new exit (range 16) 89 | -11/Scrapyard | Entered Materials 301 | -10/Materials | Build established: Mutant 310 | -10/Materials | Discovered new exit (range 10) 462 | -10/Materials | Discovered new exit (range 13) 936 | -10/Materials | Discovered new exit (range 10) 1163 | -10/Materials | Discovered new exit (range 4) 1237 | -10/Materials | Entered another Materials area 1237 | -9/Materials | Evolved 2 slots: Utility x2 1357 | -9/Materials | Discovered new exit (range 18) 1404 | -9/Materials | Core integrity fell below 50% 1417 | -9/Materials | Core integrity fell below 20% 1423 | -9/Materials | Destroyed by G-34 Mercenary with Small Laser Last Messages --------------- EXIT=FOUND O-16 Technician sends out distress signal. O-16 Technician: "IFF HANDSHAKE FAILED. SECURING TERMINAL." Particle Gun severed. Lgt. Treads destroyed. Visual Processing Unit destroyed. Lgt. Ion Engine severed. Mining Claw severed. Acquired Mining Claw. Lgt. Ion Engine destroyed. Targeting Computer severed. L-31 Rogue Imp. Aluminum Leg ripped off. R-06 Scavenger collects Lgt. Ion Engine. ALERT: Hostiles spotted, dispatching reinforcements to Terminal M009. R-06 Scavenger collects Particle Gun. L-31 Rogue Imp. Ion Engine ripped off. L-31 Rogue destroyed. R-06 Scavenger collects Katana. Map ----- +----------------------------------------------------+ | ?????????????????????????????????????????????????? | | ?????????????????????????????????????????????????? | | ?????????????????????????????????????????????????? | | ?????????????????????????????????????????????????? | | ?????????????????????????????????????????????????? | | ?????????????????????????????????????????????????? | | ?????????????????????????????????????????????????? | | ?????????????????????????????????????????????????? | | ?????????????????????????????????????????????????? | | ?????????????????????????????????????????????????? | | ?????????????????????????????????????????????????? | | ?????????????????????????????????????????????????? | | ?????????????????????????????????????????????????? | | ?????????????????????????????????????????????????? | | ?????????????????????????????????????????????????? | | ?????????????????????????????????????????????????? | | ??????????????????????????????????#####??????????? | | ??????????????????############???? ???????????? | | ??????????????????# ????? ???????????? | | ??????????????????# """????? ???????????? | | ??????????????????? " ""?????? ????????????? | | ????????????????????T ""?????? ????????????? | | ????????????????????? ???????# #????????????? | | ??????????????????????? % ???????# #????????????? | | ???????????????????????##/######### ##???????????? | | ????????????# ######r@ g #???????????? | | ????????????# <[ ^^ gg a g #######?????? | | ????????????# ###### # #?????? | | ???????????????????????########+## # #?????# | | ?????????????????????????# # # #?????# | | ?????????????????????????# # # """ ####### | | ?????????????????????????# # # """ # | | ?????????????????????????# # + """ # ##### | | ?????????????????????????# # # # #?# | | ?????????????????????????######### ####### #?# " | | ?????????????????????????# # #????# #?# " | | ?????????????????????????# # ###### ### " | | ?????????????????????????# """ + %+! | | ?????????????????????????# """ # ########## " | | ?????????????????????????# """ # #????????# " | | ?????????????????????????# #######????????# " | | ?????????????????????????#######???????????????# | | ???????????????????????????????????????????????### | | | | | | | | | | | | | | | +----------------------------------------------------+ Best States ------------- Heat Dissipation 28 Energy Generation 10 Energy Capacity 125 Matter Stores 300 Matter Capacity 300 Sight Range 18 Terrain Scan Density 10 Armor Coverage 80 Evasion (%) 40 Targeting Accuracy 5 Recoil Reduction 2 Item Schematics ----------------- None Robot Schematics ------------------ None Fabricated ------------ Nothing Alien Tech Used ----------------- None Achievements -------------- None Challenges ------------ None Game ------ Seed ScrapNeutronTube Manual? 0 Play Time 00:13:29 Cumulative 2.9 hours Start 2024.04.04 @ 15:35:14 End 2024.04.04 @ 15:50:43 Sessions 1 Manual Loads 0 Difficulty Rogue Special Mode None Game No. 5 Rogue 5 Adventurer 0 Explorer 0 Win Type - Total 0 Types 0/0/0/0/0/0/0/0/0 Lore% 4 Gallery% 10 Achievement% 10 Wizard Run 0 Options --------- Layout 1 ASCII 0 Keyboard 0 Movement Mouse Keybinds 0 Fullscreen 1 Font 24/Smallcaps Map View 50x35 Zoom Use 0% Tactical HUD 0 Map Filters NONE Filters NONE Steam 1 RUN: f908c7a0-07d8-4fa6-9dd3-bf7773456fff